[Event "85th Tata Steel Masters 2023"]
[Site "Wijk aan Zee"]
[Date "2023.01.24"]
[Round "9.3"]
[White "Maghsoodloo, Parham"]
[Black "So, Wesley"]
[Result "1/2-1/2"]
[ECO "E24"]
[WhiteElo "2719"]
[BlackElo "2760"]
[Annotator "TA"]
[PlyCount "61"]
[EventDate "2023.01.10"]
[EventType "tourn"]
[EventCountry "NED"]
[SourceTitle "playchess.com"]
[Source "ChessBase"]
[SourceQuality "1"]
[TimeControl "40/6000+30:30/3000+30:900+30"]

{[%evp 11,61,-6,0,-15,-20,-37,-34,-47,-58,-56,-55,-50,-50,-77,-37,-37,-49,-46,-35,-43,-36,-40,-30,-31,-35,-29,-23,-77,-50,-126,-106,-165,-162,-155,-34,-27,-37,-40,-8,-42,-31,-42,-8,-6,0,0,0,-8,0,0,0,0]} 1. d4 {[%emt 0:00:02]} Nf6 {[%emt 0:02:05]} 2. c4 {[%emt 0:00:05]} e6 {[%emt 0:00:03]} 3. Nc3 {[%emt 0:00:04]} Bb4 {[%emt 0:00:06]} 4. Nf3 {[%emt 0:00:02]} O-O {[%emt 0:00:08]} 5. a3 {[%emt 0:00:02]} Bxc3+ {[%emt 0:03:22]} 6. bxc3 {[%emt 0:00:06] [#]} c5 $1 {[%emt 0:01:11]} 7. g3 {[%emt 0:00:05] 7.Qc2 is a critical line. E24: Nimzo-Indian: Sämisch: Unusual Black 5th moves and 5...c5 sidelines.} (7. Qc2 d5) 7... Qa5 {[%emt 0:01:18] [#]} 8. Bg2 $146 {[%emt 0:03:06]} ({Predecessor:} 8. Bd2 b6 9. Bg2 Bb7 10. O-O Qa6 11. Bg5 Ne4 12. Qd3 d5 13. cxd5 Qxd3 14. exd3 Nxc3 15. dxc5 Bxd5 {½-½ Petkov,P (2189)-Parushev,A (2318) BUL-ch51 email 2016}) 8... cxd4 {[%emt 0:00:49]} 9. Qxd4 {[%emt 0:05:43] Black is slightly better.} Nc6 {[%emt 0:00:20]} 10. Qd3 {[%emt 0:00:55]} b6 {[%emt 0:19:14]} 11. O-O {[%emt 0:01:59]} Ba6 {[%emt 0:03:35]} 12. Bg5 {[%emt 0:02:05]} Rac8 {[%emt 0:07:24]} 13. Bxf6 $1 {[%emt 0:03:02]} gxf6 {[%emt 0:00:04]} 14. Nd2 {[%emt 0:19:05]} Ne5 {[%emt 0:14:57]} 15. Qd4 {[%emt 0:00:11]} Kg7 {[%emt 0:01:57][%cal Re5c4]} (15... Bxc4 16. f4 $16) 16. f4 {[%emt 0:04:08]} Nc6 {[%emt 0:04:47]} 17. Bxc6 {[%emt 0:08:48]} (17. Qxd7 $2 Rfd8 $19) 17... Rxc6 {[%emt 0:00:38]} 18. Ne4 {[%emt 0:03:07] Prevents Qc5. c5 would be deadly.} Qf5 {[%emt 0:09:01]} 19. Rf3 {[%emt 0:08:49]} (19. g4 $11 Qg6 20. Nd6) 19... h5 {[%emt 0:04:33]} (19... Rxc4 20. Nd6 Qc5 21. Nxc4 Bxc4 22. e4 $14) 20. h3 {[%emt 0:05:39] [#]} ({Better is} 20. Nd6 $15 Qc5 21. Qxc5 Rxc5 22. Rd3) 20... d5 $1 $17 {[%emt 0:08:12]} (20... Qxh3 $2 21. Qxf6+ Kh7 22. Ng5+ Kg8 23. Nxh3 $18) (20... Rxc4 21. Nd6 Qc5 22. Nxc4 Bxc4 23. e4 $14) (20... Bxc4 $6 21. g4 hxg4 22. hxg4 $11) 21. cxd5 {[%emt 0:02:54]} (21. Nd2 $17) 21... exd5 $19 {[%emt 0:00:15]} 22. Nf2 {[%emt 0:10:24]} Bxe2 {[%emt 0:00:12]} (22... Qc8 $17 {Strongly threatening ...Rc4.} 23. g4 Rc4) 23. Re3 $15 {[%emt 0:00:45]} Qc2 {[%emt 0:02:09]} 24. Re1 {[%emt 0:01:25]} Ba6 {[%emt 0:00:05] Hoping for ...Rd8.} (24... Bb5 $5) 25. Qxd5 {[%emt 0:06:30]} (25. g4 $5 {[%cal Rg4h5]}) 25... Rxc3 {[%emt 0:00:30]} 26. Qxh5 {[%emt 0:00:06] Threatens to win with Qg4+.} Rxe3 {[%emt 0:01:12]} 27. Qg4+ {[%emt 0:00:08] The position is equal.} Kh6 {[%emt 0:01:06]} 28. Qh4+ $1 {[%emt 0:02:36]} (28. Rxe3 $2 {loses.} Qc1+ 29. Kh2 (29. Nd1 $2 Rd8 $19) 29... Rc8 $19) 28... Kg7 {[%emt 0:00:26]} 29. Qg4+ {[%emt 0:00:02]} Kh6 {[%emt 0:00:03]} 30. Qh4+ $1 {[%emt 0:00:04]} (30. Rxe3 $2 {too greedy.} Qc1+ 31. Kh2 (31. Nd1 $2 Rd8 $19) 31... Rc8 $19) 30... Kg7 {[%emt 0:00:03]} 31. Qg4+ {[%emt 0:00:03] Weighted Error Value: White=0.12 (very precise) /Black=0.16 (very precise)} 1/2-1/2

[Event "85th Tata Steel Masters 2023"]
[Site "Wijk aan Zee"]
[Date "2023.01.24"]
[Round "9.4"]
[White "Carlsen, Magnus"]
[Black "Gukesh D"]
[Result "1/2-1/2"]
[ECO "D38"]
[WhiteElo "2859"]
[BlackElo "2725"]
[Annotator "TA"]
[PlyCount "91"]
[EventDate "2023.01.10"]
[EventType "tourn"]
[EventCountry "NED"]
[SourceTitle "playchess.com"]
[Source "ChessBase"]
[SourceQuality "1"]
[TimeControl "40/6000+30:30/3000+30:900+30"]

{[%evp 9,91,11,21,8,5,0,11,16,28,32,29,24,21,0,0,4,0,0,0,0,0,0,0,0,0,0,-15,-8,-9,-8,-6,-25,-30,-27,-7,-10,0,-27,0,0,0,0,0,0,0,0,0,0,14,28,12,21,21,16,13,17,22,0,7,6,10,9,9,0,3,1,1,2,7,2,2,-2,-7,-64,-64,-77,-77,-77,0,0,0,0,0,0]} 1. d4 {[%emt 0:00:37]} Nf6 {[%emt 0:00:17]} 2. c4 {[%emt 0:00:50]} e6 {[%emt 0:00:19]} 3. Nf3 {[%emt 0:00:07]} d5 {[%emt 0:00:13]} 4. Nc3 {[%emt 0:00:15]} Bb4 {[%emt 0:00:48]} 5. cxd5 {[%emt 0:01:14]} exd5 {[%emt 0:00:08]} 6. Bf4 {[%emt 0:00:12] D38: Queen's Gambit Declined: Ragozin Defence (4 Nf3 Bb4).} Ne4 {[%emt 0:04:06] The modern move.} 7. Rc1 {[%emt 0:00:11]} ({Don't play} 7. Qa4+ Nc6 8. Rc1 O-O $15) 7... Nd7 {[%emt 0:03:04]} 8. Nd2 {[%emt 0:00:48]} Nxc3 {[%emt 0:00:26]} 9. bxc3 {[%emt 0:00:10]} Ba3 {[%emt 0:00:06]} 10. Rb1 {[%emt 0:04:05]} Nb6 {[%emt 0:00:09] [#]} 11. e3 $146 {[%emt 0:14:13]} ({Predecessor:} 11. Qc2 Bd7 12. e3 Qe7 13. Bb5 c6 14. Bd3 c5 15. dxc5 Bxc5 16. Nb3 Bd6 17. O-O {½-½ Xiong,J (2684)-Swiercz,D (2667) Saint Louis Summer-A 2019 (10)}) 11... Bf5 {[%emt 0:02:18] Repels Qc2} 12. Rb3 {[%emt 0:00:26]} Bd6 {[%emt 0:01:54]} 13. Bg3 {[%emt 0:06:09][%cal Oa2a4]} O-O {[%emt 0:01:58]} 14. Nf3 {[%emt 0:04:18]} c5 {[%emt 0:09:06]} 15. dxc5 {[%emt 0:02:57]} Bxc5 {[%emt 0:00:07]} 16. Bd3 {[%emt 0:00:33]} Be4 {[%emt 0:01:39]} 17. O-O {[%emt 0:00:42]} Qe7 {[%emt 0:04:28]} 18. Qb1 {[%emt 0:05:51]} Rac8 {[%emt 0:04:46]} 19. Rd1 {[%emt 0:05:32]} Rfd8 {[%emt 0:01:52]} 20. Bh4 {[%emt 0:04:27]} f6 {[%emt 0:00:21]} 21. Bg3 {[%emt 0:00:13]} Bxd3 {[%emt 0:12:26]} 22. Rxd3 {[%emt 0:00:26]} Qe4 {[%emt 0:03:58]} 23. Nd2 {[%emt 0:04:15]} Qf5 {[%emt 0:02:38]} 24. h4 {[%emt 0:03:46]} Re8 {[%emt 0:18:44]} 25. Rb5 {[%emt 0:05:05]} Qg6 {[%emt 0:05:53][%cal Oc5e3]} 26. Bf4 {[%emt 0:06:23]} Bf8 {[%emt 0:01:16]} 27. Ra5 {[%emt 0:05:32] Repels Na4} a6 {[%emt 0:05:14]} 28. e4 {[%emt 0:16:48]} Nc4 {[%emt 0:00:14]} (28... dxe4 $2 29. Rg3 Qf7 30. Qxb6 $18) 29. Raxd5 {[%emt 0:01:09]} Nxd2 {[%emt 0:06:45]} 30. Bxd2 {[%emt 0:00:07]} Qxe4 {[%emt 0:00:59]} 31. R5d4 {[%emt 0:01:02]} Qe6 {[%emt 0:05:14]} 32. Qxb7 {[%emt 0:02:27]} Qxa2 {[%emt 0:00:41]} 33. h5 {[%emt 0:03:10][%cal Oh5h6]} Qf7 {[%emt 0:03:44]} 34. Qf3 {[%emt 0:00:31][%cal Oh5h6]} (34. Qxf7+ {simplifies} Kxf7 35. Ra4 Rcd8 36. Rxd8 Rxd8 37. Be3) 34... h6 {[%emt 0:03:49]} 35. Rd7 {[%emt 0:02:40]} (35. Rd5 {simplifies} Rc5 36. Be3 Rxd5 37. Rxd5 Qe6 38. Ra5) 35... Qe6 {[%emt 0:00:29]} 36. Qg3 {[%emt 0:04:00]} (36. Be3 {simplifies} Qe4 37. Qxe4 Rxe4 38. R3d5) 36... Qf5 {[%emt 0:02:53]} 37. Qg6 {[%emt 0:04:47]} (37. Bxh6 $2 {perishes.} Re1+ 38. Kh2 Qxh5+ 39. Qh3 Qxh3+ 40. Kxh3 Rh1+ 41. Kg4 Rxh6 $19) 37... Qxg6 {[%emt 0:00:50]} 38. hxg6 {[%emt 0:00:02]} Ra8 {[%emt 0:03:24]} 39. R3d4 {[%emt 0:02:31]} f5 {[%emt 0:00:34]} 40. c4 {[%emt 0:01:09]} a5 {[%emt 0:01:53] aiming for ...a4.} 41. R4d5 {[%emt 0:10:02]} (41. c5 $11) 41... a4 $15 {[%emt 0:03:51] Hoping for ...a3.} 42. Bc3 {[%emt 0:04:18]} a3 {[%emt 0:02:54] And now ...a2 would win.} 43. Rxf5 {[%emt 0:00:14] [#]} a2 {[%emt 0:00:43]} (43... Re7 $1 $17 {[%cal Re7d7]} 44. Rf7 Rxd7 45. Rxd7 a2) 44. Rxf8+ $1 $11 {[%emt 0:00:07] The position is equal.} Kxf8 {[%emt 0:00:05]} 45. Rf7+ {[%emt 0:00:04]} Kg8 {[%emt 0:00:03]} 46. Rxg7+ {[%emt 0:00:11] Weighted Error Value: White=0.05 (flawless) /Black=0.06 (flawless)} 1/2-1/2

[Event "85th Tata Steel Masters 2023"]
[Site "Wijk aan Zee"]
[Date "2023.01.24"]
[Round "9.5"]
[White "Praggnanandhaa R"]
[Black "Caruana, Fabiano"]
[Result "1/2-1/2"]
[ECO "D38"]
[WhiteElo "2684"]
[BlackElo "2766"]
[Annotator "TA"]
[PlyCount "117"]
[EventDate "2023.01.10"]
[EventType "tourn"]
[EventCountry "NED"]
[SourceTitle "playchess.com"]
[Source "ChessBase"]
[SourceQuality "1"]
[TimeControl "40/6000+30:30/3000+30:900+30"]

{[%evp 11,117,4,20,14,16,9,13,10,22,22,22,20,27,31,35,20,21,0,0,0,0,0,0,0,0,0,0,0,0,0,12,0,11,0,0,0,9,12,16,14,47,35,46,47,52,47,57,60,60,60,63,47,60,60,68,56,62,47,47,45,52,37,43,17,16,0,37,0,15,0,0,0,0,0,0,0,0,0,0,0,0,0,0,0,0,0,0,0,0,0,0,0,0,0,0,0,0,0,0,0,0,0,0,0,0,0,0,0]} 1. d4 {[%emt 0:00:47]} Nf6 {[%emt 0:00:05]} 2. c4 {[%emt 0:00:31]} e6 {[%emt 0:00:05]} 3. Nf3 {[%emt 0:00:04]} d5 {[%emt 0:00:04]} 4. Nc3 {[%emt 0:00:03]} Bb4 {[%emt 0:00:05]} 5. Qa4+ {[%emt 0:00:32]} Nc6 {[%emt 0:00:06]} 6. e3 {[%emt 0:00:08]} O-O {[%emt 0:00:10]} 7. Qc2 {[%emt 0:00:07] D38: Queen's Gambit Declined: Ragozin Defence (4 Nf3 Bb4).} b6 {[%emt 0:00:33]} 8. Bd2 {[%emt 0:01:05]} Ne7 {[%emt 0:00:22]} 9. a3 {[%emt 0:01:26] [#]} Bd6 $146 {[%emt 0:00:09]} ({Predecessor:} 9... Bxc3 10. Bxc3 a5 11. cxd5 exd5 12. Bd3 Ba6 {½-½ Iniyan,P (2556)-Pichot,A (2641) Tashkent President op 2nd 2022 (3)}) 10. b4 {[%emt 0:14:48][%cal Bb2b4,Bb4c5][%mdl 32] And now c5 would win.} c6 {[%emt 0:00:14]} 11. c5 {[%emt 0:20:31]} bxc5 {[%emt 0:00:15]} 12. bxc5 {[%emt 0:00:29]} Bc7 {[%emt 0:00:05][%cal Oe6e5]} 13. Bd3 {[%emt 0:00:55]} Ng6 {[%emt 0:00:12]} 14. Ne2 {[%emt 0:10:12]} e5 {[%emt 0:16:41]} 15. dxe5 {[%emt 0:06:08]} Nxe5 {[%emt 0:00:52]} 16. Nxe5 {[%emt 0:01:20]} Bxe5 {[%emt 0:00:05]} 17. Bc3 {[%emt 0:00:19]} Bxc3+ {[%emt 0:01:09]} 18. Qxc3 {[%emt 0:00:31]} Ba6 {[%emt 0:00:19][%mdl 64] [#] Deflection} 19. O-O {[%emt 0:05:08]} Bxd3 {[%emt 0:07:14]} 20. Qxd3 {[%emt 0:00:27]} Ne4 {[%emt 0:00:20]} 21. Qa6 {[%emt 0:11:27]} Qd7 {[%emt 0:04:16]} 22. Nd4 {[%emt 0:02:43]} Rfc8 {[%emt 0:00:16]} 23. Qa5 {[%emt 0:02:34]} Rab8 {[%emt 0:10:45]} 24. Rab1 {[%emt 0:01:13]} g6 {[%emt 0:00:53]} 25. Rb4 {[%emt 0:02:13]} Ng5 {[%emt 0:10:55]} 26. Qa6 {[%emt 0:05:12]} Rxb4 {[%emt 0:01:00]} 27. axb4 {[%emt 0:00:02]} Ne6 {[%emt 0:00:57]} 28. Nc2 {[%emt 0:03:12]} Rb8 {[%emt 0:01:59]} 29. h3 {[%emt 0:00:45]} Qc7 {[%emt 0:05:29]} 30. Ra1 {[%emt 0:03:50]} Rb7 {[%emt 0:00:17]} 31. Qa4 {[%emt 0:03:14]} Kg7 {[%emt 0:01:24]} 32. Rd1 {[%emt 0:02:38]} Kg8 {[%emt 0:02:15]} 33. Qa3 {[%emt 0:01:31]} Qe5 {[%emt 0:05:04]} 34. Qa6 {[%emt 0:00:27]} Rc7 {[%emt 0:03:30]} 35. Qa1 {[%emt 0:02:08]} Qe4 {[%emt 0:07:33]} 36. Qc3 {[%emt 0:00:29]} h5 {[%emt 0:00:32]} 37. Ra1 {[%emt 0:02:11]} Rd7 {[%emt 0:03:47]} 38. Rd1 {[%emt 0:01:49]} Rb7 {[%emt 0:00:34]} 39. Ra1 {[%emt 0:02:08]} Rd7 $1 {[%emt 0:00:11] The position is equal.} 40. Nd4 {[%emt 0:02:52]} Nxd4 {[%emt 0:00:10]} 41. Qxd4 {[%emt 0:51:28]} Qxd4 {[%emt 1:18:20]} (41... Rb7 {is more complex.} 42. Qf6 Qxb4 43. Qxc6 d4) 42. exd4 $11 {[%emt 0:00:13][%mdl 4096] Endgame KR-KR} Kg7 {[%emt 0:00:22]} 43. Kf1 {[%emt 0:00:00]} Rb7 {[%emt 0:00:00]} 44. Ra4 {[%emt 0:00:00]} Re7 {[%emt 0:00:00]} 45. f3 {[%emt 0:00:00]} Re3 $1 {[%emt 0:00:00]} 46. Rxa7 {[%emt 0:00:00] aiming for Ra6.} Rd3 {[%emt 0:00:00]} 47. Ra6 {[%emt 0:00:00]} Rxd4 {[%emt 0:00:00]} 48. Rb6 {[%emt 0:00:00]} Kf8 {[%emt 0:00:00]} 49. Ke2 {[%emt 0:00:00]} Ke7 {[%emt 0:00:00]} 50. Ke3 {[%emt 0:00:00]} Rc4 $1 {[%emt 0:00:00]} 51. Rxc6 {[%emt 0:00:00] Strongly threatening b5.} Rxb4 {[%emt 0:00:00]} 52. Rd6 {[%emt 0:00:00]} Rb2 {[%emt 0:00:00]} 53. g4 {[%emt 0:00:00]} Rb3+ {[%emt 0:00:00]} 54. Kf4 {[%emt 0:00:00]} hxg4 {[%emt 0:00:00]} 55. hxg4 {[%emt 0:00:00]} Rd3 {[%emt 0:00:00]} 56. g5 {[%emt 0:00:00]} d4 {[%emt 0:00:00]} 57. Ke4 {[%emt 0:00:00][%mdl 64] [#] Deflection} Re3+ {[%emt 0:00:00]} 58. Kf4 {[%emt 0:00:00]} Rd3 {[%emt 0:00:00]} 59. Ke4 {[%emt 0:00:00][%csl LRd3,LRd4][%mdl 64] Deflection.   Weighted Error Value: White=0.05 (flawless) /Black=0.03 (flawless)} 1/2-1/2

[Event "85th Tata Steel Masters 2023"]
[Site "Wijk aan Zee"]
[Date "2023.01.24"]
[Round "9.6"]
[White "Aronian, Levon"]
[Black "Van Foreest, Jorden"]
[Result "1/2-1/2"]
[ECO "D45"]
[WhiteElo "2735"]
[BlackElo "2681"]
[Annotator "TA"]
[PlyCount "61"]
[EventDate "2023.01.10"]
[EventType "tourn"]
[EventCountry "NED"]
[SourceTitle "playchess.com"]
[Source "ChessBase"]
[SourceQuality "1"]
[TimeControl "40/6000+30:30/3000+30:900+30"]

{[%evp 12,61,11,20,38,46,40,10,7,18,18,16,6,7,13,5,11,9,0,0,0,0,0,0,0,0,0,0,0,0,0,0,0,0,0,0,0,0,0,0,0,0,0,0,0,0,0,0,0,0,0,0]} 1. d4 {[%emt 0:00:05]} d5 {[%emt 0:00:28]} 2. c4 {[%emt 0:00:11]} c6 {[%emt 0:00:11]} 3. Nc3 {[%emt 0:00:37]} Nf6 {[%emt 0:00:24]} 4. e3 {[%emt 0:00:11]} e6 {[%emt 0:02:18]} 5. Nf3 {[%emt 0:00:19]} Be7 {[%emt 0:00:11]} 6. Qc2 {[%emt 0:02:42]} O-O {[%emt 0:00:34]} 7. b3 {[%emt 0:00:04]} dxc4 {[%emt 0:00:20] D45: Semi-Slav: 5 e3.} 8. Bxc4 {[%emt 0:00:14]} b5 {[%emt 0:00:09]} 9. Be2 {[%emt 0:02:46]} Bb7 {[%emt 0:08:23] The position is equal.} 10. O-O {[%emt 0:01:44] [#]} Nbd7 $146 {[%emt 0:01:57]} ({Predecessor:} 10... a6 11. Bb2 Nbd7 12. Rfd1 Qc7 13. a4 b4 14. Nb1 Rac8 15. Nbd2 c5 16. Rac1 Qb8 {1-0 Zuluaga Mancilla,C (2219)-Nieto,A (2121) Manizales op 27th 2022 (7)}) 11. Bb2 {[%emt 0:02:25]} Rc8 {[%emt 0:06:30]} 12. Rfd1 {[%emt 0:01:49]} Qb6 {[%emt 0:05:20]} 13. Ne5 {[%emt 0:22:38]} Rfd8 {[%emt 0:05:29]} 14. Nxd7 {[%emt 0:00:37]} Rxd7 {[%emt 0:03:32]} 15. Bd3 {[%emt 0:02:17]} a6 {[%emt 0:14:52]} 16. Ne4 {[%emt 0:02:21]} Nxe4 {[%emt 0:00:33]} 17. Bxe4 {[%emt 0:00:04]} f5 {[%emt 0:03:39]} 18. Bf3 {[%emt 0:01:10][%cal Ob3b4]} c5 {[%emt 0:00:34]} 19. dxc5 {[%emt 0:02:03]} Rxc5 {[%emt 0:01:32]} 20. Qe2 {[%emt 0:00:32]} Bxf3 {[%emt 0:04:38]} 21. Qxf3 {[%emt 0:01:59]} Qc6 {[%emt 0:01:39]} 22. Rxd7 {[%emt 0:08:00]} Qxd7 {[%emt 0:00:06]} 23. Rd1 {[%emt 0:00:12] Repels Qd2} Rd5 {[%emt 0:00:38]} 24. Rxd5 {[%emt 0:00:06]} Qxd5 {[%emt 0:00:06]} 25. Qxd5 {[%emt 0:00:04]} exd5 $11 {[%emt 0:00:07][%mdl 4096] Endgame KB-KB} 26. Kf1 {[%emt 0:00:04]} Kf7 {[%emt 0:00:10]} 27. Ke2 {[%emt 0:00:03]} g6 {[%emt 0:00:06]} 28. h3 {[%emt 0:00:03]} h5 {[%emt 0:00:24]} 29. Kd3 {[%emt 0:00:11]} Ke6 {[%emt 0:00:07]} 30. f3 {[%emt 0:00:04]} Bc5 {[%emt 0:00:19]} 31. Bc3 {[%emt 0:00:18] Weighted Error Value: White=0.02 (flawless) /Black=0.02 (flawless)} 1/2-1/2

[Event "85th Tata Steel Masters 2023"]
[Site "Wijk aan Zee"]
[Date "2023.01.24"]
[Round "9.7"]
[White "Erigaisi Arjun"]
[Black "Rapport, Richard"]
[Result "0-1"]
[ECO "E44"]
[WhiteElo "2722"]
[BlackElo "2740"]
[Annotator "TA"]
[PlyCount "50"]
[EventDate "2023.01.10"]
[EventType "tourn"]
[EventCountry "NED"]
[SourceTitle "playchess.com"]
[Source "ChessBase"]
[SourceQuality "1"]
[TimeControl "40/6000+30:30/3000+30:900+30"]

{[%evp 16,50,12,8,17,12,22,8,18,10,11,16,35,0,0,0,0,0,0,-75,-74,-75,-66,-65,-65,-185,-161,-143,-162,-183,-183,-185,-204,-360,-350,-29987,-220]} 1. d4 {[%emt 0:00:09]} Nf6 {[%emt 0:00:30]} 2. c4 {[%emt 0:00:06]} e6 {[%emt 0:01:07]} 3. Nc3 {[%emt 0:00:05]} Bb4 {[%emt 0:00:20]} 4. e3 {[%emt 0:00:06]} b6 {[%emt 0:02:56]} 5. Nge2 {[%emt 0:01:04]} Ne4 {[%emt 0:00:54]} 6. Qc2 {[%emt 0:03:57]} Bb7 {[%emt 0:01:07]} 7. a3 {[%emt 0:03:06]} Bxc3+ {[%emt 0:00:30]} 8. Nxc3 {[%emt 0:00:07]} Nxc3 {[%emt 0:00:18]} 9. Qxc3 {[%emt 0:00:23]} d6 {[%emt 0:00:14] E44: Nimzo-Indian: Rubinstein: 4...b6 5 Ne2.} 10. b3 {[%emt 0:12:11]} Qh4 {[%emt 0:06:04]} 11. Bb2 {[%emt 0:01:15][%cal Od4d5] [#]} Be4 $146 {[%emt 0:12:09] The position is equal.} ({Predecessor:} 11... Nd7 12. d5 O-O-O 13. Be2 exd5 14. cxd5 Nc5 15. O-O Bxd5 16. b4 Na4 17. Qd4 Qxd4 18. Bxd4 {½-½ Kaspi,A (2488)-Bar,R (2354) ISR-ch Ramat Aviv/Modiin 2000 (1)}) 12. Qd2 {[%emt 0:04:01]} g5 {[%emt 0:01:51]} 13. h3 {[%emt 0:28:39]} g4 {[%emt 0:08:29]} 14. O-O-O {[%emt 0:04:14]} Rg8 {[%emt 0:06:11]} 15. Qe2 {[%emt 0:02:35]} Qh5 {[%emt 0:07:13]} 16. Rg1 {[%emt 0:08:04]} Nd7 {[%emt 0:02:09]} 17. Qe1 {[%emt 0:07:49]} (17. Rh1 $11) 17... gxh3 $17 {[%emt 0:01:32]} 18. Be2 {[%emt 0:00:04]} Qh6 {[%emt 0:02:55] [#] ...h2 would be deadly. Black has more active pieces.} 19. gxh3 {[%emt 0:00:06]} O-O-O {[%emt 0:04:13][%cal Ba8d8,Bd8g8,Bg8g2,Bg2c2][%mdl 32]} 20. Rg4 {[%emt 0:04:00]} ({White should play} 20. h4 $1 $15) 20... f5 $19 {[%emt 0:02:22][%cal Bf7f5,Bf5f4][%mdl 32]} 21. Rxg8 {[%emt 0:02:41]} Rxg8 {[%emt 0:00:17]} 22. h4 {[%emt 0:01:32]} Rg2 {[%emt 0:08:04]} ({Weaker is} 22... Qxh4 23. f3 Qxe1 24. Rxe1 $17) 23. h5 {[%emt 0:02:51]} f4 {[%emt 0:03:35]} 24. f3 $2 {[%emt 0:10:11]} (24. Bf1 Rh2 25. exf4 Qxf4+ 26. Qe3) 24... Qxh5 {[%emt 0:01:37]} 25. Bf1 {[%emt 0:01:08] [#]} (25. exf4 $19 Bxf3 26. Bxf3 Qxf3 27. Qf1) 25... Rc2+ {[%emt 0:00:33] Weighted Error Value: White=0.67/Black=0.01 (flawless)} ({Worse is} 25... Bxf3 26. Bxg2 Bxg2 27. exf4 $11) 0-1

[Event "85th Tata Steel Masters 2023"]
[Site "Wijk aan Zee"]
[Date "2023.01.25"]
[Round "10.1"]
[White "Abdusattorov, Nodirbek"]
[Black "Ding, Liren"]
[Result "1/2-1/2"]
[ECO "C67"]
[WhiteElo "2713"]
[BlackElo "2811"]
[Annotator "TA"]
[PlyCount "53"]
[EventDate "2023.01.10"]
[EventType "tourn"]
[EventCountry "NED"]
[SourceTitle "playchess.com"]
[Source "ChessBase"]
[SourceQuality "1"]
[TimeControl "40/6000+30:30/3000+30:900+30"]

{[%evp 15,53,19,19,17,22,16,16,8,17,13,18,1,2,12,14,2,4,3,10,6,6,0,10,9,10,5,7,4,8,4,8,6,7,0,0,0,5,0,0,0]} 1. e4 {[%emt 0:00:16]} e5 {[%emt 0:00:06]} 2. Nf3 {[%emt 0:00:08]} Nc6 {[%emt 0:00:04]} 3. Bb5 {[%emt 0:00:08]} Nf6 {[%emt 0:00:04]} 4. O-O {[%emt 0:00:48][%cal Bh1f1,Bf1e1,Be1e5][%mdl 32]} Nxe4 {[%emt 0:00:09]} 5. Re1 {[%emt 0:00:21]} Nd6 {[%emt 0:00:08]} 6. Nxe5 {[%emt 0:00:08]} Be7 {[%emt 0:00:06]} 7. Bf1 {[%emt 0:00:08]} Nxe5 {[%emt 0:00:22]} 8. Rxe5 {[%emt 0:00:10]} O-O {[%emt 0:00:05] The position is equal.} 9. Nc3 {[%emt 0:03:11] C67: Ruy Lopez: Berlin Defence: 4 0-0 Nxe4.} Bf6 {[%emt 0:00:33]} 10. Re1 {[%emt 0:00:48]} Re8 {[%emt 0:00:11]} 11. Rxe8+ {[%emt 0:06:51]} Nxe8 {[%emt 0:01:36]} 12. Nd5 {[%emt 0:00:08]} Bg5 {[%emt 0:00:48]} 13. d4 {[%emt 0:00:48] [#] Bxg5 is the strong threat.} Bxc1 {[%emt 0:01:02]} 14. Rxc1 {[%emt 0:00:29]} c6 {[%emt 0:00:22]} 15. Ne3 {[%emt 0:00:23]} d5 {[%emt 0:00:08]} 16. c4 {[%emt 0:00:05]} dxc4 {[%emt 0:03:17]} 17. Bxc4 {[%emt 0:00:41]} Bd7 {[%emt 0:00:12]} 18. d5 {[%emt 0:04:20] [#]} Rc8 $146 {[%emt 0:14:41]} ({Predecessor:} 18... Nf6 19. b4 cxd5 20. Nxd5 Bc6 21. Nxf6+ Qxf6 22. b5 Rd8 {½-½ Stukalov,M (2202)-Guerra,R (2221) W-ch WS/M/628 email 2017}) 19. dxc6 {[%emt 0:03:28]} Bxc6 {[%emt 0:00:14]} 20. Qb3 {[%emt 0:05:22]} Nd6 {[%emt 0:03:27]} 21. Rd1 {[%emt 0:00:07] [#] And now Qb4 would win.} Qf6 {[%emt 0:05:44]} 22. Bd5 {[%emt 0:00:15]} h6 {[%emt 0:02:58]} 23. h3 {[%emt 0:05:25]} Qe5 {[%emt 0:04:11]} 24. Kf1 {[%emt 0:06:18]} Bb5+ {[%emt 0:01:32]} 25. Kg1 {[%emt 0:00:05]} Bc6 {[%emt 0:00:03]} 26. Kf1 {[%emt 0:00:05]} Bb5+ {[%emt 0:01:08]} 27. Kg1 {[%emt 0:00:06] Not much happened in this game.   Weighted Error Value: White=0.03 (flawless) /Black=0.01 (flawless)} 1/2-1/2